fUSD/lending_fUSD_20260508
["ID","MTS","AMOUNT","RATE_DAILY","PERIOD"]
[421796452,1778171440000,-1000.0,0.00022638,2]
[421796451,1778171440000,-1000.0,0.00022638,2]
[421796453,1778171440000,-1000.0,0.00022638,2]
[421796456,1778171440000,-251.48833264,0.00022638,2]
[421796457,1778171440000,-490.06145751,0.00022638,2]
[421796459,1778171440000,-621.58823374,0.00022638,2]
[421796458,1778171440000,-509.93854249,0.00022638,2]
[421796461,1778171440000,-1000.0,0.00022638,2]
[421796462,1778171440000,-1000.0,0.00022638,2]
[421796463,1778171440000,-59.74135645,0.00022638,2]
[421796454,1778171440000,-748.51166736,0.00022638,2]
[421796460,1778171440000,-378.41176626,0.00022638,2]
[421796523,1778171444000,-1000.0,0.00022638,2]
[421796526,1778171444000,-243.0,0.00023,2]
[421796525,1778171444000,-944.22067877,0.00022638,2]
[421796522,1778171444000,-1000.0,0.00022638,2]
[421796527,1778171444000,-433.0,0.00023,2]
[421796521,1778171444000,-1000.0,0.00022638,2]
[421796519,1778171444000,-1000.0,0.00022638,2]
[421796518,1778171444000,-940.25864355,0.00022638,2]
[421796520,1778171444000,-1000.0,0.00022638,2]
[421796528,1778171444000,-158.0,0.00023,2]
[421796536,1778171444000,-154.16,0.00024658,2]
[421796530,1778171444000,-160.0,0.00023589,2]
[421796529,1778171444000,-214.63993676,0.00023589,2]
[421796545,1778171444000,-513.09249082,0.00025088,2]
[421796543,1778171444000,-437.0,0.00025,2]
[421796541,1778171444000,-247.97723788,0.00025,2]
[421796538,1778171444000,-150.63,0.00024658,2]
[421796534,1778171444000,-166.44,0.00024079,30]
[421796533,1778171444000,-166.0,0.00024,2]
[421796532,1778171444000,-433.0,0.00024,2]
[421796531,1778171444000,-243.0,0.00024,2]
[421796548,1778171445000,-761.5531167,0.00025088,2]
[421796551,1778171445000,-154.16,0.00025114,7]
[421796549,1778171445000,-486.86439248,0.00025088,2]
[421796555,1778171445000,-167.11,0.00025168,2]
[421796553,1778171445000,-5000.0,0.00025126,2]
[421796560,1778171445000,-154.16,0.00025571,30]
[421796557,1778171445000,-166.44,0.00025347,30]
[421796559,1778171445000,-2500.0,0.00025432,2]
[421796562,1778171445000,-154.16,0.00026027,2]
[421796561,1778171445000,-1000.0,0.0002561,2]
[421796568,1778171445000,-503.0,0.00027137,2]
[421796566,1778171445000,-166.44,0.00026614,30]
[421796570,1778171445000,-207.9261601,0.000274,10]
[421796571,1778171445000,-500.0,0.000278,7]
[421796569,1778171445000,-11888.41,0.00027397,10]
[421796573,1778171445000,-1743.89563073,0.00028224,2]
[421796572,1778171445000,-503.0,0.00028064,3]
[421796577,1778171445000,-150.63,0.00024962,7]
[421796579,1778171445000,-17.61436927,0.00028224,2]
[421796581,1778171445000,-1512.51216521,0.00028792,2]
[421796564,1778171445000,-154.16,0.00026484,7]
[421796584,1778171446000,-2931.22537302,0.00028792,2]
[421796583,1778171446000,-2500.0,0.00028792,2]
[421796582,1778171446000,-150.63,0.00025266,30]
[421796585,1778171447000,-159.0,0.00028795,2]
[421796587,1778171447000,-1133.38305733,0.00028821,2]
[421796586,1778171447000,-167.01,0.00028797,2]
[421796588,1778171448000,-207.9261601,0.00023589,2]
[421796589,1778171448000,-119.53506101,0.00028821,2]
[421796592,1778171449000,-627.0,0.00028821,2]
[421796593,1778171449000,-2060.97487225,0.00028821,2]
[421796594,1778171449000,-390.44648562,0.00028821,2]
[421796597,1778171449000,-167.01,0.00028859,7]
[421796595,1778171449000,-159.0,0.00028834,7]
[421796604,1778171449000,-346.524995,0.00028882,10]
[421796601,1778171449000,-1632.06864213,0.00028882,10]
[421796605,1778171449000,-7928.41636287,0.00028882,10]
[421796607,1778171449000,-500.0,0.00028891,2]
[421796599,1778171449000,-159.0,0.00028874,30]
[421796614,1778171450000,-235.53829586,0.00028891,2]
[421796609,1778171450000,-500.0,0.00028891,2]
[421796611,1778171450000,-175.56082898,0.00028891,2]
[421796615,1778171450000,-592.77008915,0.00028891,2]
[421796616,1778171450000,-430.60849403,0.00028891,2]
[421796626,1778171450000,-142794.11652773,0.00028892,2]
[421796621,1778171450000,-500.0,0.00028891,2]
[421796622,1778171450000,-500.0,0.00028891,2]
[421796624,1778171450000,-524.53478845,0.00028891,2]
[421796628,1778171450000,-258597.41992748,0.00028892,2]
[421796632,1778171450000,-7980.0,0.00028892,2]
[421796619,1778171450000,-500.0,0.00028891,2]
[421796671,1778171451000,-25146.19564328,0.00028892,2]
[421796931,1778171473000,500.0,0.00028891,120]
[421796930,1778171473000,500.0,0.00028891,120]
[421796932,1778171474000,500.0,0.00028891,120]
[421796936,1778171749000,287.51,0.00027253,120]
[421796938,1778171799000,500.0,0.00028891,120]
[421796939,1778171799000,500.0,0.00028891,120]
[421796940,1778171799000,500.0,0.00028891,120]
[421796943,1778172078000,500.0,0.00028661,120]
[421796942,1778172078000,500.0,0.00028661,120]
[421796941,1778172078000,500.0,0.00028661,120]
[421796945,1778172079000,552.97345526,0.00028661,120]
[421796944,1778172079000,500.0,0.00028661,120]
[421796946,1778172096000,500.0,0.00028891,120]
[421796948,1778172097000,500.0,0.00028891,120]
[421796947,1778172097000,500.0,0.00028891,120]
[421796949,1778172144000,500.0,0.00028891,120]
[421796951,1778172144000,500.0,0.00028891,120]
[421796950,1778172144000,500.0,0.00028891,120]
[421796984,1778172638000,-326.0,0.00021,2]
[421796976,1778172638000,-285.8,0.00016438,2]
[421796977,1778172638000,-249.3438693,0.00018082,2]
[421796978,1778172638000,-285.8,0.0001841,2]
[421796979,1778172638000,-189.0,0.0002,2]
[421796981,1778172638000,-221.0,0.0002,2]
[421796980,1778172638000,-326.0,0.0002,2]
[421796983,1778172638000,-189.0,0.00021,2]
[421796992,1778172638000,-2816.15708596,0.00022638,2]
[421796982,1778172638000,-285.8,0.00020381,2]
[421796985,1778172638000,-221.0,0.00021,2]
[421796986,1778172638000,-189.0,0.00022,2]
[421796995,1778172638000,-4026.86,0.00022638,2]
[421796993,1778172638000,-2829.81285236,0.00022638,2]
[421796994,1778172638000,-11889.06004923,0.00022638,2]
[421796991,1778172638000,-665.32180989,0.00022638,2]
[421796996,1778172638000,-156.31,0.00022638,2]
[421796989,1778172638000,-285.8,0.00022353,2]
[421796987,1778172638000,-326.0,0.00022,2]
[421796988,1778172638000,-221.0,0.00022,2]
[421796990,1778172638000,-285.35912962,0.00022407,2]
[421797023,1778172639000,-182.28,0.00026179,2]
[421797018,1778172639000,-200.12,0.00025234,30]
[421797017,1778172639000,-202.32,0.00025234,30]
[421797019,1778172639000,-1007.63,0.00025786,2]
[421797020,1778172639000,-200.55980911,0.00025794,2]
[421797021,1778172639000,-207.9261601,0.00025887,2]
[421797026,1778172639000,-285.8,0.00026296,2]
[421797024,1778172639000,-199.99,0.00026197,2]
[421797029,1778172639000,-500.0,0.00026346,2]
[421797028,1778172639000,-151.0,0.00026346,2]
[421797027,1778172639000,-200.0,0.00026346,2]
[421797025,1778172639000,-200.0,0.00026219,2]
[421797031,1778172639000,-500.0,0.00026346,2]
[421797036,1778172639000,-500.0,0.00026346,2]
[421797022,1778172639000,-167.11,0.0002617,2]
[421797030,1778172639000,-151.0,0.00026346,2]
[421797016,1778172639000,-224.0,0.00025,2]
[421797000,1778172639000,-221.0,0.00023,2]
[421797014,1778172639000,-341.0,0.00025,2]
[421796998,1778172639000,-189.0,0.00023,2]
[421796997,1778172639000,-299.99,0.00022638,7]
[421796999,1778172639000,-326.0,0.00023,2]
[421797034,1778172639000,-500.0,0.00026346,2]
[421797001,1778172639000,-464.20027123,0.00023495,2]
[421797002,1778172639000,-207.9261601,0.00023589,2]
[421797003,1778172639000,-189.0,0.00024,2]
[421797006,1778172639000,-1007.63,0.00024174,2]
[421797004,1778172639000,-326.0,0.00024,2]
[421797005,1778172639000,-221.0,0.00024,2]
[421797008,1778172639000,-202.32,0.00024658,2]
[421797007,1778172639000,-285.8,0.00024324,2]
[421797009,1778172639000,-200.12,0.00024658,2]
[421797011,1778172639000,-202.32,0.00024946,7]
[421797015,1778172639000,-172.52,0.00025,2]
[421797010,1778172639000,-401.0,0.00024798,2]
[421797012,1778172639000,-200.12,0.00024946,7]
[421797013,1778172639000,-201.0,0.00025,2]
[421797037,1778172639000,-151.0,0.00026346,2]
[421797032,1778172639000,-151.0,0.00026346,2]
[421797035,1778172639000,-151.0,0.00026346,2]
[421797064,1778172639000,-2080.17592889,0.00026346,2]
[421797065,1778172639000,-5000.0,0.00026362,2]
[421797061,1778172639000,-500.0,0.00026346,2]
[421797066,1778172639000,-214.63993676,0.00026544,2]
[421797067,1778172639000,-1000.0,0.0002671,2]
[421797068,1778172639000,-1056.9,0.00026831,2]
[421797071,1778172639000,-200.0,0.00026904,2]
[421797063,1778172639000,-239.02460032,0.00026346,2]
[421797069,1778172639000,-1662.23248002,0.00026894,2]
[421797070,1778172639000,-168.0,0.00026904,2]
[421797074,1778172639000,-503.0,0.00027137,2]
[421797078,1778172639000,-503.0,0.00027137,2]
[421797080,1778172639000,-163.05350721,0.00027534,2]
[421797082,1778172639000,-200.0,0.00027726,10]
[421797083,1778172639000,-333.0,0.00027726,10]
[421797033,1778172639000,-500.0,0.00026346,2]
[421797073,1778172639000,-333.0,0.00026904,2]
[421797058,1778172639000,-500.0,0.00026346,2]
[421797076,1778172639000,-502.99997,0.00027137,2]
[421797057,1778172639000,-500.0,0.00026346,2]
[421797059,1778172639000,-500.0,0.00026346,2]
[421797039,1778172639000,-151.0,0.00026346,2]
[421797040,1778172639000,-500.0,0.00026346,2]
[421797041,1778172639000,-151.0,0.00026346,2]
[421797042,1778172639000,-500.0,0.00026346,2]
[421797046,1778172639000,-500.0,0.00026346,2]
[421797045,1778172639000,-151.0,0.00026346,2]
[421797044,1778172639000,-500.0,0.00026346,2]
[421797043,1778172639000,-151.0,0.00026346,2]
[421797038,1778172639000,-500.0,0.00026346,2]
[421797047,1778172639000,-151.0,0.00026346,2]
[421797050,1778172639000,-489.80489431,0.00026346,2]
[421797051,1778172639000,-500.0,0.00026346,2]
[421797049,1778172639000,-151.0,0.00026346,2]
[421797056,1778172639000,-500.0,0.00026346,2]
[421797055,1778172639000,-500.0,0.00026346,2]
[421797053,1778172639000,-500.0,0.00026346,2]
[421797048,1778172639000,-500.0,0.00026346,2]
[421797102,1778172640000,-3984.68069053,0.00028562,2]
[421797104,1778172640000,-171.27841917,0.00028652,2]
[421797107,1778172640000,-151.0,0.00028659,7]
[421797105,1778172640000,-207.9261601,0.00028652,10]
[421797106,1778172640000,-151.0,0.00028659,7]
[421797108,1778172640000,-500.0,0.00028661,2]
[421797109,1778172640000,-164.8768071,0.00028661,2]
[421797111,1778172640000,-547.07992049,0.00028661,2]
[421797116,1778172640000,-2500000.0,0.00028662,2]
[421797113,1778172640000,-224.94830983,0.00028661,2]
[421797114,1778172640000,-472.40575375,0.00028661,7]
[421797118,1778172640000,-57057.6194,0.00028662,2]
[421797112,1778172640000,-368.54350511,0.00028661,2]
[421797115,1778172640000,-150.0,0.00028661,2]
[421797120,1778172640000,-500.0,0.00028673,5]
[421797121,1778172640000,-503.0,0.00028692,3]
[421797110,1778172640000,-500.0,0.00028661,2]
[421797103,1778172640000,-500.0,0.000286,10]
[421797122,1778172640000,-396.8,0.000287,7]
[421797100,1778172640000,-196.77875163,0.00028562,2]
[421797088,1778172640000,-1133.00974448,0.00028314,5]
[421797084,1778172640000,-500.0,0.000278,7]
[421797086,1778172640000,-285.8,0.00028267,2]
[421797085,1778172640000,-503.0,0.00027914,2]
[421797087,1778172640000,-1015.22969555,0.00028314,5]
[421797089,1778172640000,-1148.81592819,0.00028314,5]
[421797091,1778172640000,-1114.32264108,0.00028314,5]
[421797101,1778172640000,-11370.50098438,0.00028562,2]
[421797092,1778172640000,-1023.39501323,0.00028314,5]
[421797093,1778172640000,-1016.81189243,0.00028314,5]
[421797094,1778172640000,-1296.66650464,0.00028314,5]
[421797096,1778172640000,-5642.77808667,0.00028562,2]
[421797095,1778172640000,-200.0,0.00028548,10]
[421797098,1778172640000,-5000.0,0.00028562,2]
[421797099,1778172640000,-2500.0,0.00028562,2]
[421797097,1778172640000,-1730.1323,0.00028562,2]
[421797090,1778172640000,-1062.00158796,0.00028314,5]
[421797126,1778172640000,-158.68,0.00028722,2]
[421797183,1778172640000,-158.68,0.00028977,30]
[421797129,1778172640000,-158.68,0.00028753,7]
[421797166,1778172640000,-500.0,0.00028891,30]
[421797177,1778172640000,-156.95,0.00028941,7]
[421797174,1778172640000,-156.95,0.00028908,2]
[421797176,1778172640000,-158.68,0.00028913,2]
[421797168,1778172640000,-212.39795071,0.00028892,2]
[421797172,1778172640000,-2300.0,0.000289,10]
[421797170,1778172640000,-168.0,0.000289,10]
[421797164,1778172640000,-500.0,0.00028891,30]
[421797179,1778172640000,-158.68,0.00028945,7]
[421797189,1778172640000,-156.95,0.00029038,7]
[421797191,1778172640000,-158.68,0.00029041,7]
[421797185,1778172640000,-156.95,0.00029005,2]
[421797194,1778172640000,-158.68,0.00029073,30]
[421797181,1778172640000,-156.95,0.00028973,30]
[421797192,1778172640000,-156.95,0.0002907,30]
[421797196,1778172640000,-221.14,0.00029086,2]
[421797187,1778172640000,-158.68,0.00029009,2]
[421797160,1778172640000,-158.68,0.00028881,30]
[421797123,1778172640000,-1638.96,0.000287,14]
[421797158,1778172640000,-156.95,0.00028876,30]
[421797162,1778172640000,-500.0,0.00028891,7]
[421797124,1778172640000,-1100.0,0.000287,10]
[421797127,1778172640000,-156.95,0.00028746,7]
[421797131,1778172640000,-880.663417,0.00028762,2]
[421797133,1778172640000,-84801.1342642,0.00028762,2]
[421797135,1778172640000,-1630.7439176,0.00028762,2]
[421797146,1778172640000,-158.68,0.00028785,30]
[421797144,1778172640000,-156.95,0.00028778,30]
[421797125,1778172640000,-156.95,0.00028714,2]
[421797139,1778172640000,-3669.2452474,0.00028762,2]
[421797137,1778172640000,-134942.5645246,0.00028762,2]
[421797148,1778172640000,-1700.0,0.000288,10]
[421797152,1778172640000,-158.68,0.00028817,2]
[421797154,1778172640000,-156.95,0.00028843,7]
[421797150,1778172640000,-156.95,0.00028811,2]
[421797156,1778172640000,-158.68,0.00028849,7]
[421797141,1778172640000,-500.0,0.00028773,5]
[421797248,1778172641000,-1289.86785424,0.00030087,2]
[421797238,1778172641000,-396.8,0.000298,7]
[421797242,1778172641000,-200.0,0.00029932,2]
[421797250,1778172641000,-500.0,0.000301,5]
[421797244,1778172641000,-950.11397869,0.0003,30]
[421797246,1778172641000,-501.0,0.00030027,2]
[421797252,1778172641000,-192.26329149,0.00030137,40]
[421797263,1778172641000,-150.0,0.00030137,2]
[421797261,1778172641000,-2401.53651448,0.00030137,120]
[421797259,1778172641000,-1000.0,0.00030137,120]
[421797265,1778172641000,-150.0,0.00030137,2]
[421797269,1778172641000,-150.0,0.00030137,2]
[421797268,1778172641000,-150.0,0.00030137,2]
[421797240,1778172641000,-1638.96,0.000298,14]
[421797254,1778172641000,-287.29,0.00030137,2]
[421797233,1778172641000,-11370.50098433,0.00029748,2]
[421797212,1778172641000,-156.95,0.00029168,30]
[421797235,1778172641000,-3984.68069048,0.00029748,2]
[421797200,1778172641000,-158.68,0.00029105,2]
[421797198,1778172641000,-156.95,0.00029103,2]
[421797202,1778172641000,-156.95,0.00029135,7]
[421797206,1778172641000,-11370.50098433,0.00029155,2]
[421797204,1778172641000,-158.68,0.00029137,7]
[421797209,1778172641000,-3984.68069048,0.00029155,2]
[421797220,1778172641000,-158.8,0.00029232,7]
[421797214,1778172641000,-158.68,0.00029169,30]
[421797277,1778172641000,-150.0,0.00030137,2]
[421797218,1778172641000,-156.95,0.000292,2]
[421797216,1778172641000,-158.68,0.000292,2]
[421797222,1778172641000,-157.1,0.00029232,7]
[421797224,1778172641000,-1289.86785424,0.00029325,2]
[421797226,1778172641000,-152.0,0.0002933,3]
[421797229,1778172641000,-503.0,0.00029469,4]
[421797231,1778172641000,-150.0,0.00029534,2]
[421797281,1778172641000,-168.26370078,0.00030137,2]
[421797257,1778172641000,-2610.15774797,0.00030137,120]
[421797272,1778172641000,-150.0,0.00030137,2]
[421797316,1778172641000,-500.0,0.00030345,120]
[421797320,1778172641000,-500.0,0.00030345,120]
[421797317,1778172641000,-500.0,0.00030345,120]
[421797318,1778172641000,-500.0,0.00030345,120]
[421797319,1778172641000,-500.0,0.00030345,120]
[421797322,1778172641000,-500.0,0.00030345,120]
[421797321,1778172641000,-500.0,0.00030345,120]
[421797315,1778172641000,-500.0,0.00030345,120]
[421797323,1778172641000,-167.18268562,0.00030345,120]
[421797326,1778172641000,-1635.35,0.000304,7]
[421797328,1778172641000,-3626.0,0.00030412,2]
[421797325,1778172641000,-344.33,0.000304,7]
[421797327,1778172641000,-417.0,0.00030412,2]
[421797329,1778172641000,-150.0,0.000306,7]
[421797273,1778172641000,-150.0,0.00030137,2]
[421797330,1778172641000,-150.0,0.000306,7]
[421797324,1778172641000,-248.27,0.000304,7]
[421797308,1778172641000,-500.0,0.00030345,120]
[421797331,1778172641000,-150.0,0.000306,7]
[421797302,1778172641000,-500.0,0.00030345,120]
[421797279,1778172641000,-150.0,0.00030137,2]
[421797275,1778172641000,-150.0,0.00030137,2]
[421797283,1778172641000,-1056.9,0.00030185,2]
[421797285,1778172641000,-285.8,0.00030239,2]
[421797294,1778172641000,-11370.50098433,0.00030341,2]
[421797304,1778172641000,-500.0,0.00030345,120]
[421797295,1778172641000,-3984.68069048,0.00030341,2]
[421797298,1778172641000,-151.0,0.00030343,7]
[421797287,1778172641000,-10000.0,0.00030246,2]
[421797290,1778172641000,-503.0,0.00030247,5]
[421797300,1778172641000,-500.0,0.00030345,120]
[421797312,1778172641000,-500.0,0.00030345,120]
[421797310,1778172641000,-500.0,0.00030345,120]
[421797314,1778172641000,-500.0,0.00030345,120]
[421797306,1778172641000,-500.0,0.00030345,120]
[421797292,1778172641000,-196.77875162,0.00030265,2]
[421797352,1778172642000,-189.0,0.00031141,30]
[421797351,1778172642000,-154.0,0.00031141,30]
[421797354,1778172642000,-156.0,0.00031141,30]
[421797356,1778172642000,-155.0,0.00031141,30]
[421797353,1778172642000,-326.0,0.00031141,30]
[421797355,1778172642000,-154.0,0.00031141,30]
[421797363,1778172642000,-1000.0,0.000315,7]
[421797359,1778172642000,-150.0,0.00031167,7]
[421797358,1778172642000,-152.0,0.00031141,30]
[421797361,1778172642000,-150.0,0.0003145,7]
[421797362,1778172642000,-150.0,0.00031495,7]
[421797365,1778172642000,-11370.50098433,0.00031528,2]
[421797348,1778172642000,-150.0,0.00031137,7]
[421797364,1778172642000,-214.63993676,0.000315,7]
[421797357,1778172642000,-155.0,0.00031141,30]
[421797349,1778172642000,-221.0,0.0003114,30]
[421797340,1778172642000,-396.8,0.000308,7]
[421797347,1778172642000,-152.0,0.00031054,4]
[421797366,1778172642000,-665.83796912,0.000316,2]
[421797332,1778172642000,-218.53028948,0.000306,7]
[421797333,1778172642000,-150.0,0.000306,7]
[421797334,1778172642000,-150.0,0.000306,7]
[421797336,1778172642000,-150.0,0.000306,7]
[421797337,1778172642000,-287.51,0.0003066,120]
[421797335,1778172642000,-150.0,0.000306,7]
[421797339,1778172642000,-150.0,0.00030779,7]
[421797338,1778172642000,-200.0,0.00030777,2]
[421797341,1778172642000,-1638.96,0.000308,14]
[421797342,1778172642000,-1289.86785424,0.0003085,2]
[421797343,1778172642000,-11370.50098433,0.00030934,2]
[421797344,1778172642000,-150.0,0.00030958,7]
[421797345,1778172642000,-150.0,0.00031011,2]
[421797346,1778172642000,-503.0,0.00031024,6]
[421797350,1778172642000,-157.0,0.00031141,30]
[421797367,1778172642000,-1289.86785424,0.00031612,2]
[421797360,1778172642000,-150.0,0.00031316,7]
[421797368,1778172642000,-200.0,0.00031623,2]
[421797394,1778172642000,-11370.50098433,0.00032121,2]
[421797392,1778172642000,-174.61919141,0.00032104,2]
[421797391,1778172642000,-151.0,0.00032104,2]
[421797390,1778172642000,-9552.16786547,0.00032104,2]
[421797393,1778172642000,-209.40437684,0.00032104,2]
[421797395,1778172642000,-221.0,0.0003214,30]
[421797396,1778172642000,-162.0,0.00032141,30]
[421797388,1778172642000,-344.33,0.000321,7]
[421797402,1778172642000,-155.0,0.00032141,30]
[421797397,1778172642000,-189.0,0.00032141,30]
[421797398,1778172642000,-326.0,0.00032141,30]
[421797399,1778172642000,-156.0,0.00032141,30]
[421797400,1778172642000,-154.0,0.00032141,30]
[421797401,1778172642000,-155.0,0.00032141,30]
[421797404,1778172642000,-9905.5980765,0.00032159,2]
[421797369,1778172642000,-150.0,0.00031674,7]
[421797403,1778172642000,-152.0,0.00032141,30]
[421797387,1778172642000,-150.0,0.00032032,7]
[421797371,1778172642000,-150.0,0.00031733,7]
[421797385,1778172642000,-331.314243,0.00032,120]
[421797374,1778172642000,-503.0,0.00031801,7]
[421797375,1778172642000,-150.0,0.00031853,7]
[421797372,1778172642000,-150.0,0.00031733,7]
[421797370,1778172642000,-150.0,0.00031733,7]
[421797389,1778172642000,-578.20924308,0.00032104,2]
[421797377,1778172642000,-1638.96,0.000319,14]
[421797376,1778172642000,-396.8,0.000319,7]
[421797373,1778172642000,-231.27326818,0.00031784,8]
[421797379,1778172642000,-939.0,0.000319,2]
[421797382,1778172642000,-301.96192582,0.00032,120]
[421797380,1778172642000,-196.77875162,0.00031968,2]
[421797378,1778172642000,-1000.0,0.000319,2]
[421797383,1778172642000,-175.50569687,0.00032,120]
[421797386,1778172642000,-1055.51550585,0.00032,120]
[421797384,1778172642000,-169.20519532,0.00032,120]
[421797381,1778172642000,-152.0,0.00031999,7]
[421797420,1778172643000,-200.0,0.00032469,2]
[421797425,1778172643000,-11370.50098433,0.00032714,2]
[421797429,1778172643000,-150.0,0.00032867,7]
[421797430,1778172643000,-150.0,0.00032867,7]
[421797434,1778172643000,-150.0,0.00032926,7]
[421797433,1778172643000,-2000.0,0.000329,7]
[421797437,1778172643000,-207.9261601,0.00033,120]
[421797432,1778172643000,-1638.96,0.000329,14]
[421797439,1778172643000,-368.0,0.00033,14]
[421797436,1778172643000,-1505.18850619,0.00033,120]
[421797435,1778172643000,-331.212,0.00033,120]
[421797438,1778172643000,-331.314243,0.00033,120]
[421797426,1778172643000,-150.0,0.00032747,7]
[421797441,1778172643000,-150.0,0.00033105,7]
[421797431,1778172643000,-396.8,0.000329,7]
[421797424,1778172643000,-181.08010149,0.00032652,2]
[421797416,1778172643000,-150.0,0.000323,7]
[421797422,1778172643000,-150.0,0.00032568,7]
[421797411,1778172643000,-158.09655178,0.00032269,2]
[421797405,1778172643000,-151.0,0.00032159,2]
[421797406,1778172643000,-1635.35,0.000322,7]
[421797408,1778172643000,-150.0,0.00032211,7]
[421797407,1778172643000,-285.8,0.0003221,5]
[421797409,1778172643000,-3906.92992093,0.00032214,2]
[421797410,1778172643000,-151.0,0.00032214,2]
[421797412,1778172643000,-248.27,0.000323,7]
[421797418,1778172643000,-1289.86785424,0.00032375,2]
[421797419,1778172643000,-1410.0,0.00032455,5]
[421797415,1778172643000,-150.0,0.000323,7]
[421797414,1778172643000,-150.0,0.000323,7]
[421797417,1778172643000,-179.38567307,0.00032374,120]
[421797421,1778172643000,-150.0,0.00032562,2]
[421797427,1778172643000,-152.0,0.00032778,5]
[421797423,1778172643000,-503.0,0.00032579,7]
[421797440,1778172643000,-1055.51550585,0.00033,120]
[421797428,1778172643000,-150.0,0.00032867,7]
[421797444,1778172643000,-189.0,0.00033141,30]
[421797466,1778172643000,-150.0,0.00033642,7]
[421797465,1778172643000,-2000.0,0.000336,7]
[421797469,1778172643000,-500.0,0.000338,12]
[421797467,1778172643000,-196.77875162,0.00033671,2]
[421797471,1778172643000,-300.4101434,0.00033821,60]
[421797468,1778172643000,-500.0,0.000337,12]
[421797470,1778172643000,-150.0,0.00033821,7]
[421797473,1778172643000,-187.5,0.00033821,60]
[421797472,1778172643000,-191.216409,0.00033821,60]
[421797475,1778172643000,-261.2811879,0.00033821,60]
[421797474,1778172643000,-203.3868328,0.00033821,60]
[421797476,1778172643000,-500.0,0.00033857,120]
[421797478,1778172643000,-500.0,0.00033857,120]
[421797442,1778172643000,-1289.86785424,0.00033137,2]
[421797479,1778172643000,-331.212,0.000339,120]
[421797464,1778172643000,-2900.0,0.000336,12]
[421797460,1778172643000,-150.0,0.00033463,7]
[421797477,1778172643000,-500.0,0.00033857,120]
[421797461,1778172643000,-217.15233878,0.00033473,2]
[421797462,1778172643000,-1056.9,0.00033539,2]
[421797446,1778172643000,-156.0,0.00033141,30]
[421797448,1778172643000,-155.0,0.00033141,30]
[421797447,1778172643000,-154.0,0.00033141,30]
[421797445,1778172643000,-326.0,0.00033141,30]
[421797449,1778172643000,-155.0,0.00033141,30]
[421797452,1778172643000,-368.0,0.00033151,30]
[421797451,1778172643000,-150.0,0.0003315,7]
[421797443,1778172643000,-221.0,0.0003314,30]
[421797453,1778172643000,-276.6491451,0.000332,2]
[421797458,1778172643000,-150.0,0.00033433,7]
[421797457,1778172643000,-503.0,0.00033356,8]
[421797463,1778172643000,-567.673,0.00033583,120]
[421797450,1778172643000,-152.0,0.00033141,30]
[421797455,1778172643000,-11370.50098433,0.00033307,2]
[421797454,1778172643000,-560.22783016,0.00033256,2]
[421797456,1778172643000,-200.0,0.00033314,2]
[421797481,1778172644000,-344.33,0.000339,30]
[421797480,1778172644000,-1505.18850619,0.000339,120]